Workbook

Sheet Rebate Analysis
A1: WM Skagit County | G1: WM Skagit County | M1: WM Skagit County
A2: 2018 - 2019 Rebate Calculation | G2: 2017 - 2018 Rebate Calculation | M2: 2016 - 2017 Rebate Calculation
A5: Residential | G5: Residential | M5: Residential
D7: Commodity | E7: Total | J7: Commodity | K7: Total | P7: Commodity | Q7: Total
C8: Customers | D8: Credit | E8: Credits | I8: Customers | J8: Credit | K8: Credits | O8: Customers | P8: Credit | Q8: Credits
A9: Projected Revenue May 2017-Apr 2018 | G9: Projected Revenue May 2016-Apr 2017 | M9: Projected Revenue May 2015-Apr 2016
A10: May - June projected value without adjustment factor | C10: =+Customers!C21+Customers!D21 -> 20086 | D10: =+J11 -> 1.71 | E10: =C10*D10 -> 34347.06 | G10: May - June projected value without adjustment factor | I10: 18118 | J10: =+P11 -> 2.32 | K10: =I10*J10 -> 42033.76 | M10: May - June projected value without adjustment factor | O10: 17149 | P10: 2.37 | Q10: =O10*P10 -> 40643.13
A11: July - April projected value without adjustment factor | C11: =SUM(Customers!E21:N21) -> 104400 | D11: =+L26 -> 2.04 | E11: =C11*D11 -> 212976 | G11: July - April projected value without adjustment factor | I11: 93257 | J11: =+R26 -> 1.71 | K11: =I11*J11 -> 159469.47 | M11: July - April projected value without adjustment factor | O11: 87893 | P11: 2.32 | Q11: =O11*P11 -> 203911.76
A12: Total | C12: =SUM(C10:C11) -> 124486 | E12: =SUM(E10:E11) -> 247323.06 | G12: Total | I12: =SUM(I10:I11) -> 111375 | K12: =SUM(K10:K11) -> 201503.23 | M12: Total | O12: =SUM(O10:O11) -> 105042 | Q12: =SUM(Q10:Q11) -> 244554.89
A14: Actual Commodity Revenue | E14: =+'Commodity Revenue'!Y40 -> 205192.217 | G14: Actual Commodity Revenue | K14: 231469 | M14: Actual Commodity Revenue (adj. to reflect current customers) | Q14: 183627
A16: Owe Customer (company) | E16: =E14-E12 -> -42130.843 | G16: Owe Customer (company) | K16: =K14-K12 -> 29965.77 | M16: Owe Customer (company) | Q16: =Q14-Q12 -> -60927.89
A18: Total Current Customers | E18: =+C12 -> 124486 | G18: Total Current Customers | K18: =+I12 -> 111375 | M18: Total Customers | Q18: =+O12 -> 105042
A21: Adjust for Under/(Over) payment in 2017-2018 | F21: =+E16/E18 -> -0.3384384027 | G21: Adjust for Under/(Over) payment in 2016-2017 | L21: =+K16/K18 -> 0.2690529293 | M21: Adjust for Under/(Over) payment in 2015-2016 | R21: -0.65
A24: Projected Rev. May 2018-Apr 2019(based on 4 mo. avg. - since "China Sword") | E24: =SUM('Commodity Revenue'!Y36:Y39)/4*12 -> 129079.0964 | G24: Projected Revenue May 2017-Apr 2018 | K24: =+K14 -> 231469 | M24: Projected Revenue May 2016-Apr 2017 | Q24: =+Q14 -> 183627
A25: Total Current Customers (annualized) | E25: =+Customers!N21*12 -> 128088 | G25: Total Customers | K25: 113724 | M25: Total Customers | Q25: 107280
A26: Projected Value | F26: =ROUND(+E24/E25,2) -> 1.01 | G26: Projected Value | L26: 2.04 | M26: Projected Value | R26: =ROUND(+Q24/Q25,2) -> 1.71
A29: Residential Commodity Adjustment | F29: =SUM(F20:F26) -> 0.6715615973 | G29: Residential Commodity Adjustment | L29: =SUM(L20:L26) -> 2.309052929 | M29: Residential Commodity Adjustment | R29: =SUM(R20:R26) -> 1.06

Sheet Commodity Revenue
A1: Waste Management of Skagit County
A2: Single Stream Tonnage and Revenue
C4: Total Single Stream Tonnage Processed | O4: Total Single Stream Commodity Revenue | AA4: Average rate per ton
D5: Mixed | J5: Natural | K5: Colored | L5: Mixed | P5: Mixed | V5: Natural | W5: Colored | X5: Mixed | AB5: Mixed | AH5: Natural | AI5: Colored | AJ5: Mixed
C6: ONP 6 | D6: Paper | E6: OCC | F6: Alum. | G6: Tin | H6: Glass | I6: PET | J6: HDPE | K6: HDPE | L6: Plastics | M6: Total | O6: ONP 6 | P6: Paper | Q6: OCC | R6: Alum. | S6: Tin | T6: Glass | U6: PET | V6: HDPE | W6: HDPE | X6: Plastics | Y6: Total | AA6: ONP 6 | AB6: Paper | AC6: OCC | AD6: Alum. | AE6: Tin | AF6: Glass | AG6: PET | AH6: HDPE | AI6: HDPE | AJ6: Plastics
C7: =+'CRC Composition'!$AC8 -> 0.2679051377 | D7: =+'CRC Composition'!$AC9 -> 0.1899462767 | E7: =+'CRC Composition'!$AC10 -> 0.2638739132 | F7: =+'CRC Composition'!$AC11 -> 0.005015510604 | G7: =+'CRC Composition'!AC12 -> 0.01264173356 | H7: =+'CRC Composition'!AC13 -> 0.2335160459 | I7: =+'CRC Composition'!AC14 -> 0.01525935342 | J7: =+'CRC Composition'!$AC15 -> 0.003265865609 | K7: =+'CRC Composition'!$AC16 -> 0.002957589636 | L7: =+'CRC Composition'!$AC17 -> 0.005618573748 | M7: =+M20/$M$20 -> 1
A8: May | C8: =+'Tonnages Collected'!$E10*C$7 -> 192.187666 | D8: =+'Tonnages Collected'!$E10*D$7 -> 136.2621557 | E8: =+'Tonnages Collected'!$E10*E$7 -> 189.2957781 | F8: =+'Tonnages Collected'!$E10*F$7 -> 3.597987277 | G8: =+'Tonnages Collected'!$E10*G$7 -> 9.068826703 | H8: =+'Tonnages Collected'!$E10*H$7 -> 167.5178917 | I8: =+'Tonnages Collected'!$E10*I$7 -> 10.94663411 | J8: =+'Tonnages Collected'!$E10*J$7 -> 2.342840807 | K8: =+'Tonnages Collected'!$E10*K$7 -> 2.12169223 | L8: =+'Tonnages Collected'!$E10*L$7 -> 4.030607939 | M8: =SUM(C8:L8) -> 717.3720805 | O8: =+C8*'CRC Prices'!B8 -> 15586.41971 | P8: =+D8*'CRC Prices'!C8 -> 9840.852882 | Q8: =+E8*'CRC Prices'!D8 -> 33900.9809 | R8: =+F8*'CRC Prices'!E8 -> 4544.725669 | S8: =+G8*'CRC Prices'!F8 -> 1140.132893 | T8: =+H8*'CRC Prices'!G8 -> -8935.404343 | U8: =+I8*'CRC Prices'!H8 -> 2051.289765 | V8: =+J8*'CRC Prices'!I8 -> 1394.458848 | W8: =+K8*'CRC Prices'!J8 -> 636.7198383 | X8: =+L8*'CRC Prices'!K8 -> -157.7579947 | Y8: =SUM(O8:X8) -> 60002.41816 | AA8: =+O8/C8 -> 81.1 | AB8: =+P8/D8 -> 72.22 | AC8: 179.09 | AD8: 1263.13 | AE8: 125.72 | AF8: -53.34 | AG8: 187.39 | AH8: 595.2 | AI8: 300.1 | AJ8: =+X8/L8 -> -39.14
A9: Jun | C9: =+'Tonnages Collected'!$E11*C$7 -> 193.9898858 | D9: =+'Tonnages Collected'!$E11*D$7 -> 137.5399398 | E9: =+'Tonnages Collected'!$E11*E$7 -> 191.0708795 | F9: =+'Tonnages Collected'!$E11*F$7 -> 3.631727028 | G9: =+'Tonnages Collected'!$E11*G$7 -> 9.153868682 | H9: =+'Tonnages Collected'!$E11*H$7 -> 169.0887733 | I9: =+'Tonnages Collected'!$E11*I$7 -> 11.04928503 | J9: =+'Tonnages Collected'!$E11*J$7 -> 2.364810553 | K9: =+'Tonnages Collected'!$E11*K$7 -> 2.141588178 | L9: =+'Tonnages Collected'!$E11*L$7 -> 4.068404545 | M9: 724.0991625 | O9: =+C9*'CRC Prices'!B9 -> 19701.6128 | P9: =+D9*'CRC Prices'!C9 -> 13738.86459 | Q9: =+E9*'CRC Prices'!D9 -> 39964.38516 | R9: =+F9*'CRC Prices'!E9 -> 4557.272661 | S9: =+G9*'CRC Prices'!F9 -> 1038.506402 | T9: =+H9*'CRC Prices'!G9 -> -9019.195167 | U9: =+I9*'CRC Prices'!H9 -> 2243.004861 | V9: =+J9*'CRC Prices'!I9 -> 1324.293909 | W9: =+K9*'CRC Prices'!J9 -> 621.0605717 | X9: =+L9*'CRC Prices'!K9 -> -178.7656957 | Y9: =SUM(O9:X9) -> 73991.0401 | AA9: =+O9/C9 -> 101.56 | AB9: 99.89 | AC9: 209.16 | AD9: 1254.85 | AE9: 113.45 | AF9: -53.34 | AG9: 203 | AH9: 560 | AI9: 290 | AJ9: =+X9/L9 -> -43.94
A10: Jul | C10: =+'Tonnages Collected'!$E12*C$7 -> 181.4942124 | D10: =+'Tonnages Collected'!$E12*D$7 -> 128.6804359 | E10: =+'Tonnages Collected'!$E12*E$7 -> 178.7632311 | F10: =+'Tonnages Collected'!$E12*F$7 -> 3.397792797 | G10: =+'Tonnages Collected'!$E12*G$7 -> 8.564230965 | H10: =+'Tonnages Collected'!$E12*H$7 -> 158.1970813 | I10: =+'Tonnages Collected'!$E12*I$7 -> 10.33755588 | J10: =+'Tonnages Collected'!$E12*J$7 -> 2.212483537 | K10: =+'Tonnages Collected'!$E12*K$7 -> 2.003639819 | L10: =+'Tonnages Collected'!$E12*L$7 -> 3.806342149 | M10: 677.4570059 | O10: =+C10*'CRC Prices'!B10 -> 22267.52492 | P10: =+D10*'CRC Prices'!C10 -> 15448.08632 | Q10: =+E10*'CRC Prices'!D10 -> 39490.58539 | R10: =+F10*'CRC Prices'!E10 -> 4349.752405 | S10: =+G10*'CRC Prices'!F10 -> 986.5994072 | T10: =+H10*'CRC Prices'!G10 -> -8438.232317 | U10: =+I10*'CRC Prices'!H10 -> 2336.287628 | V10: =+J10*'CRC Prices'!I10 -> 1154.805782 | W10: =+K10*'CRC Prices'!J10 -> 641.1647421 | X10: =+L10*'CRC Prices'!K10 -> -166.6035958 | Y10: 78069.97069 | AA10: 122.69 | AB10: 120.05 | AC10: 220.91 | AD10: 1280.17 | AE10: 115.2 | AF10: -53.34 | AG10: 226 | AH10: 521.95 | AI10: 320 | AJ10: -43.77
A11: Aug | C11: =+'Tonnages Collected'!$E13*C$7 -> 197.5054454 | D11: =+'Tonnages Collected'!$E13*D$7 -> 140.0324917 | E11: =+'Tonnages Collected'!$E13*E$7 -> 194.5335398 | F11: =+'Tonnages Collected'!$E13*F$7 -> 3.697542587 | G11: =+'Tonnages Collected'!$E13*G$7 -> 9.319758623 | H11: =+'Tonnages Collected'!$E13*H$7 -> 172.1530653 | I11: =+'Tonnages Collected'!$E13*I$7 -> 11.24952444 | J11: =+'Tonnages Collected'!$E13*J$7 -> 2.407666562 | K11: =+'Tonnages Collected'!$E13*K$7 -> 2.180398866 | L11: =+'Tonnages Collected'!$E13*L$7 -> 4.142133743 | M11: 737.221567 | O11: =+C11*'CRC Prices'!B11 -> 21725.59899 | P11: =+D11*'CRC Prices'!C11 -> 15711.64557 | Q11: =+E11*'CRC Prices'!D11 -> 38140.24581 | R11: =+F11*'CRC Prices'!E11 -> 4901.388502 | S11: =+G11*'CRC Prices'!F11 -> 1358.820807 | T11: =+H11*'CRC Prices'!G11 -> -9182.644503 | U11: =+I11*'CRC Prices'!H11 -> 2210.081571 | V11: =+J11*'CRC Prices'!I11 -> 1203.833281 | W11: =+K11*'CRC Prices'!J11 -> 719.5316257 | X11: =+L11*'CRC Prices'!K11 -> -164.1527602 | Y11: 76624.34889 | AA11: 110 | AB11: 112.2 | AC11: 196.06 | AD11: 1325.58 | AE11: 145.8 | AF11: -53.34 | AG11: 196.46 | AH11: 500 | AI11: 330 | AJ11: -39.63
A12: Sep | C12: =+'Tonnages Collected'!$E14*C$7 -> 183.2208049 | D12: =+'Tonnages Collected'!$E14*D$7 -> 129.9045998 | E12: =+'Tonnages Collected'!$E14*E$7 -> 180.4638432 | F12: =+'Tonnages Collected'!$E14*F$7 -> 3.430116711 | G12: =+'Tonnages Collected'!$E14*G$7 -> 8.645704287 | H12: =+'Tonnages Collected'!$E14*H$7 -> 159.7020433 | I12: =+'Tonnages Collected'!$E14*I$7 -> 10.43589921 | J12: =+'Tonnages Collected'!$E14*J$7 -> 2.233531356 | K12: =+'Tonnages Collected'!$E14*K$7 -> 2.022700864 | L12: =+'Tonnages Collected'!$E14*L$7 -> 3.842552678 | M12: 683.9017962 | O12: =+C12*'CRC Prices'!B12 -> 14547.73191 | P12: =+D12*'CRC Prices'!C12 -> 9703.873604 | Q12: =+E12*'CRC Prices'!D12 -> 28502.45939 | R12: =+F12*'CRC Prices'!E12 -> 4981.078283 | S12: =+G12*'CRC Prices'!F12 -> 1086.678572 | T12: =+H12*'CRC Prices'!G12 -> -8518.506987 | U12: =+I12*'CRC Prices'!H12 -> 1866.564933 | V12: =+J12*'CRC Prices'!I12 -> 1027.424424 | W12: =+K12*'CRC Prices'!J12 -> 610.855661 | X12: =+L12*'CRC Prices'!K12 -> -211.3403973 | Y12: 53596.81939 | AA12: 79.4 | AB12: 74.7 | AC12: 157.94 | AD12: 1452.16 | AE12: 125.69 | AF12: -53.34 | AG12: 178.86 | AH12: 460 | AI12: 302 | AJ12: -55
A13: Oct | C13: =+'Tonnages Collected'!$E15*C$7 -> 185.2961662 | D13: =+'Tonnages Collected'!$E15*D$7 -> 131.3760429 | E13: =+'Tonnages Collected'!$E15*E$7 -> 182.5079761 | F13: =+'Tonnages Collected'!$E15*F$7 -> 3.468970004 | G13: =+'Tonnages Collected'!$E15*G$7 -> 8.74363509 | H13: =+'Tonnages Collected'!$E15*H$7 -> 161.5110051 | I13: =+'Tonnages Collected'!$E15*I$7 -> 10.55410774 | J13: =+'Tonnages Collected'!$E15*J$7 -> 2.258830801 | K13: =+'Tonnages Collected'!$E15*K$7 -> 2.04561221 | L13: =+'Tonnages Collected'!$E15*L$7 -> 3.886077677 | M13: 691.6484238 | O13: =+C13*'CRC Prices'!B13 -> 11486.50934 | P13: =+D13*'CRC Prices'!C13 -> 7058.834783 | Q13: =+E13*'CRC Prices'!D13 -> 17719.6994 | R13: =+F13*'CRC Prices'!E13 -> 5364.033628 | S13: =+G13*'CRC Prices'!F13 -> 1141.656434 | T13: =+H13*'CRC Prices'!G13 -> -8614.997013 | U13: =+I13*'CRC Prices'!H13 -> 1678.10313 | V13: =+J13*'CRC Prices'!I13 -> 1188.145001 | W13: =+K13*'CRC Prices'!J13 -> 746.6484566 | X13: =+L13*'CRC Prices'!K13 -> -213.7342722 | Y13: 37554.89889 | AA13: 61.99 | AB13: 53.73 | AC13: 97.09 | AD13: 1546.29 | AE13: 130.57 | AF13: -53.34 | AG13: 159 | AH13: 526 | AI13: 365 | AJ13: -55
A14: Nov | C14: =+'Tonnages Collected'!$E16*C$7 -> 201.5656894 | D14: =+'Tonnages Collected'!$E16*D$7 -> 142.911228 | E14: =+'Tonnages Collected'!$E16*E$7 -> 198.5326885 | F14: =+'Tonnages Collected'!$E16*F$7 -> 3.773555303 | G14: =+'Tonnages Collected'!$E16*G$7 -> 9.511350781 | H14: =+'Tonnages Collected'!$E16*H$7 -> 175.6921245 | I14: =+'Tonnages Collected'!$E16*I$7 -> 11.48078801 | J14: =+'Tonnages Collected'!$E16*J$7 -> 2.457162483 | K14: =+'Tonnages Collected'!$E16*K$7 -> 2.225222701 | L14: =+'Tonnages Collected'!$E16*L$7 -> 4.227286199 | M14: 752.3770958 | O14: =+C14*'CRC Prices'!B14 -> 15363.33685 | P14: =+D14*'CRC Prices'!C14 -> 6889.750302 | Q14: =+E14*'CRC Prices'!D14 -> 29762.03533 | R14: =+F14*'CRC Prices'!E14 -> 5273.468064 | S14: =+G14*'CRC Prices'!F14 -> 1246.842974 | T14: =+H14*'CRC Prices'!G14 -> -9371.417919 | U14: =+I14*'CRC Prices'!H14 -> 1141.764367 | V14: =+J14*'CRC Prices'!I14 -> 1584.869801 | W14: =+K14*'CRC Prices'!J14 -> 812.2062858 | X14: =+L14*'CRC Prices'!K14 -> -190.227879 | Y14: 52512.62817 | AA14: 76.22 | AB14: 48.21 | AC14: 149.91 | AD14: 1397.48 | AE14: 131.09 | AF14: -53.34 | AG14: 99.45 | AH14: 645 | AI14: 365 | AJ14: -45
A15: Dec | C15: =+'Tonnages Collected'!$E17*C$7 -> 202.5944964 | D15: =+'Tonnages Collected'!$E17*D$7 -> 143.640658 | E15: =+'Tonnages Collected'!$E17*E$7 -> 199.5460147 | F15: =+'Tonnages Collected'!$E17*F$7 -> 3.792815822 | G15: =+'Tonnages Collected'!$E17*G$7 -> 9.559897455 | H15: =+'Tonnages Collected'!$E17*H$7 -> 176.5888707 | I15: =+'Tonnages Collected'!$E17*I$7 -> 11.53938684 | J15: =+'Tonnages Collected'!$E17*J$7 -> 2.469704031 | K15: =+'Tonnages Collected'!$E17*K$7 -> 2.236580411 | L15: =+'Tonnages Collected'!$E17*L$7 -> 4.248862597 | M15: 756.217287 | O15: =+C15*'CRC Prices'!B15 -> 17098.9755 | P15: =+D15*'CRC Prices'!C15 -> 6242.622997 | Q15: =+E15*'CRC Prices'!D15 -> 32156.84028 | R15: =+F15*'CRC Prices'!E15 -> 4909.344944 | S15: =+G15*'CRC Prices'!F15 -> 1436.183395 | T15: =+H15*'CRC Prices'!G15 -> -9419.250365 | U15: =+I15*'CRC Prices'!H15 -> 953.6149286 | V15: =+J15*'CRC Prices'!I15 -> 1506.519459 | W15: =+K15*'CRC Prices'!J15 -> 781.4164638 | X15: =+L15*'CRC Prices'!K15 -> -169.9545039 | Y15: 55496.31309 | AA15: 84.4 | AB15: 43.46 | AC15: 161.15 | AD15: 1294.38 | AE15: 150.23 | AF15: -53.34 | AG15: 82.64 | AH15: 610 | AI15: 349.38 | AJ15: -40
A16: Jan., '18 | C16: =+'Tonnages Collected'!$E18*C$7 -> 218.5588148 | D16: =+'Tonnages Collected'!$E18*D$7 -> 154.9594512 | E16: =+'Tonnages Collected'!$E18*E$7 -> 215.2701147 | F16: =+'Tonnages Collected'!$E18*F$7 -> 4.091687314 | G16: =+'Tonnages Collected'!$E18*G$7 -> 10.31321134 | H16: =+'Tonnages Collected'!$E18*H$7 -> 190.5039622 | I16: =+'Tonnages Collected'!$E18*I$7 -> 12.44868324 | J16: =+'Tonnages Collected'!$E18*J$7 -> 2.664315149 | K16: =+'Tonnages Collected'!$E18*K$7 -> 2.412821534 | L16: =+'Tonnages Collected'!$E18*L$7 -> 4.583670286 | M16: 815.8067317 | O16: =+C16*'CRC Prices'!B16 -> 11544.2766 | P16: =+D16*'CRC Prices'!C16 -> 4676.676236 | Q16: =+E16*'CRC Prices'!D16 -> 32068.78899 | R16: =+F16*'CRC Prices'!E16 -> 6326.607842 | S16: =+G16*'CRC Prices'!F16 -> 1847.405547 | T16: =+H16*'CRC Prices'!G16 -> -10161.48135 | U16: =+I16*'CRC Prices'!H16 -> 2486.002043 | V16: =+J16*'CRC Prices'!I16 -> 1651.875392 | W16: =+K16*'CRC Prices'!J16 -> 834.8362509 | X16: =+L16*'CRC Prices'!K16 -> -183.3468115 | Y16: 51091.64074 | AA16: 52.82 | AB16: 30.18 | AC16: 148.97 | AD16: 1546.21 | AE16: 179.13 | AF16: -53.34 | AG16: 199.7 | AH16: 620 | AI16: 346 | AJ16: -40
A17: Feb | C17: =+'Tonnages Collected'!$E19*C$7 -> 150.8575577 | D17: =+'Tonnages Collected'!$E19*D$7 -> 106.9588723 | E17: =+'Tonnages Collected'!$E19*E$7 -> 148.5875726 | F17: =+'Tonnages Collected'!$E19*F$7 -> 2.824237292 | G17: =+'Tonnages Collected'!$E19*G$7 -> 7.118568411 | H17: =+'Tonnages Collected'!$E19*H$7 -> 131.4930378 | I17: =+'Tonnages Collected'!$E19*I$7 -> 8.592551859 | J17: =+'Tonnages Collected'!$E19*J$7 -> 1.839011054 | K17: =+'Tonnages Collected'!$E19*K$7 -> 1.665420653 | L17: =+'Tonnages Collected'!$E19*L$7 -> 3.163822542 | M17: 563.1006521 | O17: =+C17*'CRC Prices'!B17 -> 9297.351283 | P17: =+D17*'CRC Prices'!C17 -> 650.3099433 | Q17: =+E17*'CRC Prices'!D17 -> 16210.90417 | R17: =+F17*'CRC Prices'!E17 -> 3458.10911 | S17: =+G17*'CRC Prices'!F17 -> 1279.064372 | T17: =+H17*'CRC Prices'!G17 -> -7013.838634 | U17: =+I17*'CRC Prices'!H17 -> 1168.587053 | V17: =+J17*'CRC Prices'!I17 -> 1176.967075 | W17: =+K17*'CRC Prices'!J17 -> 649.5140545 | X17: =+L17*'CRC Prices'!K17 -> -126.5529017 | Y17: 26750.41553 | AA17: 61.63 | AB17: 6.08 | AC17: 109.1 | AD17: 1224.44 | AE17: 179.68 | AF17: -53.34 | AG17: 136 | AH17: 640 | AI17: 390 | AJ17: -40
A18: Mar | C18: =+'Tonnages Collected'!$E20*C$7 -> 170.2531218 | D18: =+'Tonnages Collected'!$E20*D$7 -> 120.7104382 | E18: =+'Tonnages Collected'!$E20*E$7 -> 167.6912876 | F18: =+'Tonnages Collected'!$E20*F$7 -> 3.187345884 | G18: =+'Tonnages Collected'!$E20*G$7 -> 8.033793685 | H18: =+'Tonnages Collected'!$E20*H$7 -> 148.3989302 | I18: =+'Tonnages Collected'!$E20*I$7 -> 9.697285309 | J18: =+'Tonnages Collected'!$E20*J$7 -> 2.075450364 | K18: =+'Tonnages Collected'!$E20*K$7 -> 1.879541665 | L18: =+'Tonnages Collected'!$E20*L$7 -> 3.570591177 | M18: 635.4977859 | O18: =+C18*'CRC Prices'!B18 -> 8056.377724 | P18: =+D18*'CRC Prices'!C18 -> -823.2451888 | Q18: =+E18*'CRC Prices'!D18 -> 13031.28996 | R18: =+F18*'CRC Prices'!E18 -> 3308.496901 | S18: =+G18*'CRC Prices'!F18 -> 1474.522493 | T18: =+H18*'CRC Prices'!G18 -> -7915.598934 | U18: =+I18*'CRC Prices'!H18 -> 1697.024929 | V18: =+J18*'CRC Prices'!I18 -> 1435.381472 | W18: =+K18*'CRC Prices'!J18 -> 845.7937492 | X18: =+L18*'CRC Prices'!K18 -> -107.1177353 | Y18: 21002.92537 | AA18: 47.32 | AB18: -6.82 | AC18: 77.71 | AD18: 1038.01 | AE18: 183.54 | AF18: -53.34 | AG18: 175 | AH18: 691.6 | AI18: 450 | AJ18: -30
A19: Apr | C19: =+'Tonnages Collected'!$E21*C$7 -> 174.2074258 | D19: =+'Tonnages Collected'!$E21*D$7 -> 123.5140624 | E19: =+'Tonnages Collected'!$E21*E$7 -> 171.5860903 | F19: =+'Tonnages Collected'!$E21*F$7 -> 3.261375273 | G19: =+'Tonnages Collected'!$E21*G$7 -> 8.220386812 | H19: =+'Tonnages Collected'!$E21*H$7 -> 151.845648 | I19: =+'Tonnages Collected'!$E21*I$7 -> 9.922514741 | J19: =+'Tonnages Collected'!$E21*J$7 -> 2.123654835 | K19: =+'Tonnages Collected'!$E21*K$7 -> 1.923195955 | L19: =+'Tonnages Collected'!$E21*L$7 -> 3.653521832 | M19: 650.257876 | O19: =+C19*'CRC Prices'!B19 -> 14014.9874 | P19: =+D19*'CRC Prices'!C19 -> -1121.507687 | Q19: =+E19*'CRC Prices'!D19 -> 14905.68367 | R19: =+F19*'CRC Prices'!E19 -> 4959.312467 | S19: =+G19*'CRC Prices'!F19 -> 1572.642201 | T19: =+H19*'CRC Prices'!G19 -> -8099.446867 | U19: =+I19*'CRC Prices'!H19 -> 2004.347978 | V19: =+J19*'CRC Prices'!I19 -> 1656.450771 | W19: =+K19*'CRC Prices'!J19 -> 846.20622 | X19: =+L19*'CRC Prices'!K19 -> -146.1408733 | Y19: 30592.53528 | AA19: 80.45 | AB19: -9.08 | AC19: 86.87 | AD19: 1520.62 | AE19: 191.31 | AF19: -53.34 | AG19: 202 | AH19: 780 | AI19: 440 | AJ19: -40
C20: =SUM(C8:C19) -> 2251.731287 | D20: =SUM(D8:D19) -> 1596.490376 | E20: 2217.849016 | F20: 42.15515329 | G20: 106.2532328 | H20: 1962.692433 | I20: 128.2542164 | J20: 27.44946153 | K20: 24.85841509 | L20: 47.22387336 | M20: 8404.957464 | O20: =SUM(O8:O19) -> 180690.703 | P20: =SUM(P8:P19) -> 88016.76436 | Q20: 335853.8984 | R20: 56933.59048 | S20: 15609.0555 | T20: -104690.0144 | U20: 21836.67319 | V20: 16305.02522 | W20: 8745.95392 | X20: -2015.695421 | Y20: =SUM(Y8:Y19) -> 617285.9543 | AA20: =+O20/C20 -> 80.24523357 | AB20: =+P20/D20 -> 55.1314093 | AC20: =+Q20/E20 -> 151.4322643 | AD20: =+R20/F20 -> 1350.572493 | AE20: =+S20/G20 -> 146.9042878 | AF20: =+T20/H20 -> -53.34 | AG20: =+U20/I20 -> 170.26086 | AH20: =+V20/J20 -> 594.0016418 | AI20: =+W20/K20 -> 351.8307137 | AJ20: -42.68382233
C23: Total Single Stream Tonnage Processed | O23: Total Single Stream Commodity Revenue
B24: % | D24: Mixed | J24: Natural | K24: Colored | L24: Mixed | P24: Mixed | V24: Natural | W24: Colored | X24: Mixed | AB24: lbs./
B25: Reg. | C25: =+C6 -> ONP 6 | D25: Paper | E25: =+E6 -> OCC | F25: Alum. | G25: Tin | H25: Glass | I25: PET | J25: HDPE | K25: HDPE | L25: Plastics | M25: Total | O25: =+O6 -> ONP 6 | P25: Paper | Q25: =+Q6 -> OCC | R25: Alum. | S25: Tin | T25: Glass | U25: PET | V25: HDPE | W25: HDPE | X25: Plastics | Y25: Total | AA25: Customers | AB25: Customer
A28: May | B28: =+Customers!C$22 -> 0.3234731277 | C28: =+C8*$B28 -> 62.16754542 | D28: =+D8*$B28 -> 44.07714568 | E28: =+E8*$B28 -> 61.23209739 | F28: 1.163852198 | G28: 2.933521738 | H28: 54.18753637 | I28: 3.540941972 | J28: 0.7578460435 | K28: 0.6863104217 | L28: 1.303793357 | M28: =SUM(C28:L28) -> 232.0505906 | O28: =+O8*$B$40 -> 5181.086647 | P28: 3271.200982 | Q28: 11269.03566 | R28: 1510.71368 | S28: 378.9919313 | T28: -2970.22055 | U28: 681.869872 | V28: 463.5325016 | W28: 211.6522404 | X28: -52.44038434 | Y28: =SUM(O28:X28) -> 19945.42258 | AA28: =+Customers!C$21 -> 9973 | AB28: =+M28*2000/AA28 -> 46.53576468
A29: Jun | B29: =+Customers!D$22 -> 0.3265418147 | C29: =+C9*$B29 -> 63.34580934 | D29: 44.91254154 | E29: =+E9*$B29 -> 62.39263173 | F29: 1.185910734 | G29: 2.98912089 | H29: 55.21455487 | I29: 3.608053584 | J29: 0.7722095292 | K29: 0.69931809 | L29: 1.328504203 | M29: =SUM(C29:L29) -> 236.4486545 | O29: =+O9*$B$40 -> 6549.019269 | P29: 4566.940273 | Q29: 13284.57376 | R29: 1514.88443 | S29: 345.2102377 | T29: -2998.073485 | U29: 745.5979468 | V29: 440.2089524 | W29: 206.4469387 | X29: -59.42356079 | Y29: =SUM(O29:X29) -> 24595.38477 | AA29: =+Customers!D$21 -> 10113 | AB29: 46.7613279
A30: =+A10 -> Jul | B30: =+Customers!E$22 -> 0.3289981973 | C30: 59.7112687 | D30: 42.33563142 | E30: =+E10*$B30 -> 58.81278079 | F30: 1.117867705 | G30: 2.817616548 | H30: 52.04655456 | I30: 3.401037247 | J30: 0.7279030953 | K30: 0.6591938885 | L30: 1.252279705 | M30: 222.8821337 | O30: =+O10*$B$40 -> 7401.954919 | P30: 5135.103204 | Q30: 13127.07783 | R30: 1445.902556 | S30: 327.9558173 | T30: -2804.955442 | U30: 776.6061006 | V30: 383.869351 | W30: 213.1297723 | X30: -55.38075337 | Y30: 25951.26336 | AA30: =+Customers!E$21 -> 10220 | AB30: 43.6168559
A31: Aug | B31: =+Customers!F$22 -> 0.3309748175 | C31: 65.36932874 | D31: 46.34722839 | E31: =+E11*$B31 -> 64.38570282 | F31: 1.223793483 | G31: 3.084605409 | H31: 56.97832937 | I31: 3.723309297 | J31: 0.796877001 | K31: 0.7216571166 | L31: 1.37094196 | M31: 244.0017736 | O31: =+O11*$B$40 -> 7221.813152 | P31: 5222.713015 | Q31: 12678.21103 | R31: 1629.272084 | S31: 451.6860492 | T31: -3052.405729 | U31: 734.6539057 | V31: 400.1665972 | W31: 239.1797326 | X31: -54.56607033 | Y31: 25470.72376 | AA31: =+Customers!F$21 -> 10291 | AB31: 47.42042048
A32: Sep | B32: =+Customers!G$22 -> 0.3316845993 | C32: 60.77151925 | D32: 43.08735513 | E32: =+E12*$B32 -> 59.85707752 | F32: 1.137716887 | G32: 2.867646962 | H32: 52.97070823 | I32: 3.461427048 | J32: 0.740827953 | K32: 0.6708987257 | L32: 1.274515546 | M32: 226.8396933 | O32: =+O12*$B$40 -> 4835.81611 | P32: 3225.667658 | Q32: 9474.511436 | R32: 1655.761789 | S32: 361.2231637 | T32: -2831.63957 | U32: 620.4654326 | V32: 341.5264739 | W32: 203.0547212 | X32: -70.25172753 | Y32: 17816.13549 | AA32: =+Customers!G$21 -> 10327 | AB32: 43.93138244
A33: Oct | B33: =+Customers!H$22 -> 0.3328954535 | C33: 61.68425128 | D33: 43.73448737 | E33: =+E13*$B33 -> 60.75607549 | F33: 1.154804343 | G33: 2.910716369 | H33: 53.7662793 | I33: 3.513414482 | J33: 0.751954504 | K33: 0.6809750044 | L33: 1.293657591 | M33: 230.2466157 | O33: =+O13*$B$40 -> 3818.234161 | P33: 2346.429476 | Q33: 5890.210817 | R33: 1783.060095 | S33: 379.4983719 | T33: -2863.71385 | U33: 557.8187861 | V33: 394.9516513 | W33: 248.1936468 | X33: -71.04747624 | Y33: 12483.63568 | AA33: =+Customers!H$21 -> 10390 | AB33: 44.3208115
A34: Nov | B34: =+Customers!I$22 -> 0.3344017436 | C34: 67.40391801 | D34: 47.78976383 | E34: =+E14*$B34 -> 66.38967719 | F34: 1.261883473 | G34: 3.180612285 | H34: 58.75175277 | I34: 3.839195528 | J34: 0.8216794186 | K34: 0.7441183512 | L34: 1.413611876 | M34: 251.5962127 | O34: =+O14*$B$40 -> 5106.931604 | P34: 2290.224051 | Q34: 9893.207466 | R34: 1752.955167 | S34: 414.4634626 | T34: -3115.15596 | U34: 379.5342502 | V34: 526.827066 | W34: 269.9857453 | X34: -63.23370871 | Y34: 17455.73914 | AA34: =+Customers!I$21 -> 10433 | AB34: 48.23084688
A35: Dec | B35: =+Customers!J$22 -> 0.3349145806 | C35: 67.85185079 | D35: 48.10735074 | E35: =+E15*$B35 -> 66.83086984 | F35: 1.27026932 | G35: 3.201749047 | H35: 59.14218758 | I35: 3.864708904 | J35: 0.8271398897 | K35: 0.7490633902 | L35: 1.423006035 | M35: 253.2681955 | O35: =+O15*$B$40 -> 5683.875789 | P35: 2075.112262 | Q35: 10689.26533 | R35: 1631.916887 | S35: 477.4021711 | T35: -3131.055958 | U35: 316.9914365 | V35: 500.7826042 | W35: 259.750891 | X35: -56.49462975 | Y35: 18447.54678 | AA35: =+Customers!J$21 -> 10449 | AB35: 48.47702087
A36: Jan., '18 | B36: =+Customers!K$22 -> 0.334972381 | C36: 73.21116657 | D36: 51.90713631 | E36: =+E16*$B36 -> 72.10954287 | F36: 1.370602242 | G36: 3.454640957 | H36: 63.81356582 | I36: 4.169965064 | J36: 0.8924719892 | K36: 0.8082285743 | L36: 1.535402949 | M36: 273.2727233 | O36: =+O16*$B$40 -> 3837.436591 | P36: 1554.575409 | Q36: 10659.99617 | R36: 2103.02969 | S36: 614.0966552 | T36: -3377.78119 | U36: 826.372716 | V36: 549.1004155 | W36: 277.5081791 | X36: -60.9463709 | Y36: 16983.38827 | AA36: =+Customers!K$21 -> 10491 | AB36: 52.09660153
A37: Feb | B37: =+Customers!L$22 -> 0.3353946194 | C37: 50.59681316 | D37: 35.87343025 | E37: =+E17*$B37 -> 49.83547236 | F37: 0.9472339917 | G37: 2.387529543 | H37: 44.10205735 | I37: 2.881895661 | J37: 0.6167944127 | K37: 0.5585731259 | L37: 1.061129057 | M37: 188.8609289 | O37: =+O17*$B$40 -> 3090.535446 | P37: 216.1697315 | Q37: 5388.671722 | R37: 1149.51113 | S37: 425.1741877 | T37: -2331.472292 | U37: 388.4503875 | V37: 391.2359932 | W37: 215.9051699 | X37: -42.0674896 | Y37: 8892.113986 | AA37: =+Customers!L$21 -> 10522 | AB37: 35.89829479
A38: Mar | B38: =+Customers!M22 -> 0.3366352351 | C38: =+C18*$B38 -> 57.31319968 | D38: 40.63538676 | E38: 56.45079602 | F38: 1.072972931 | G38: 2.704458026 | H38: 49.95630874 | I38: 3.26444792 | J38: 0.6986697211 | K38: 0.6327199503 | L38: 1.2019868 | M38: =SUM(C38:L38) -> 213.9309465 | O38: =+O18*$B$40 -> 2678.023037 | P38: -273.6551905 | Q38: 4331.735168 | R38: 1099.778489 | S38: 490.1464828 | T38: -2631.226716 | U38: 564.1085871 | V38: 477.1356036 | W38: 281.1505645 | X38: -35.60703987 | Y38: 6981.588985 | AA38: =+Customers!M$21 -> 10603 | AB38: 40.3529089
A39: Apr | B39: =+Customers!N22 -> 0.3377313716 | C39: =+C19*$B39 -> 58.83531286 | D39: 41.71457371 | E39: 57.95000563 | F39: 1.101468744 | G39: 2.776282513 | H39: 51.28303899 | I39: 3.351144513 | J39: 0.7172248601 | K39: 0.6495236076 | L39: 1.233908939 | M39: 219.6124844 | O39: =+O19*$B$40 -> 4658.726344 | P39: -372.8007207 | Q39: 4954.802966 | R39: 1648.526607 | S39: 522.7624856 | T39: -2692.339664 | U39: 666.2659377 | V39: 550.6213185 | W39: 281.2876741 | X39: -48.57873336 | Y39: 10169.27421 | AA39: =+Customers!N$21 -> 10674 | AB39: 41.14905085
B40: =+Customers!O22 -> 0.3324103126 | C40: =SUM(C28:C39) -> 748.2619838 | D40: =SUM(D28:D39) -> 530.5220311 | E40: 737.0027297 | F40: 14.00837605 | G40: 35.30850029 | H40: 652.2128739 | I40: 42.61954122 | J40: 9.121598417 | K40: 8.260580246 | L40: 15.69273802 | M40: 2793.010953 | O40: =SUM(O28:O39) -> 60063.45307 | P40: =SUM(P28:P39) -> 29257.68015 | Q40: 111641.2994 | R40: 18925.3126 | S40: 5188.611016 | T40: -34800.04041 | U40: 7258.735359 | V40: 5419.958528 | W40: 2907.245276 | X40: -670.0379448 | Y40: =SUM(Y28:Y39) -> 205192.217 | AA40: =SUM(AA28:AA39) -> 124486 | AB40: 44.87269175

Sheet CRC Prices
A1: Cascade Recycling Center
A2: Monthly Price per ton of Commodities Sold
B5: Passback Price/ton schedule
I6: Natural | J6: Colored | K6: Mixed
A7: Month | B7: ONP 6 | C7: Mixed Paper | D7: OCC | E7: Alum. | F7: Tin | G7: Glass | H7: PET | I7: HDPE | J7: HDPE | K7: Plastics 3-7
A8: 2017-05-10 | B8: 81.1 | C8: 72.22 | D8: 179.09 | E8: 1263.13 | F8: 125.72 | G8: -53.34 | H8: 187.39 | I8: 595.2 | J8: 300.1 | K8: -39.14
A9: 2017-06-10 | B9: 101.56 | C9: 99.89 | D9: 209.16 | E9: 1254.85 | F9: 113.45 | G9: =+G8 -> -53.34 | H9: 203 | I9: 560 | J9: 290 | K9: -43.94
A10: 2017-07-10 | B10: 122.69 | C10: 120.05 | D10: 220.91 | E10: 1280.17 | F10: 115.2 | G10: -53.34 | H10: 226 | I10: 521.95 | J10: 320 | K10: -43.77
A11: 2017-08-10 | B11: 110 | C11: 112.2 | D11: 196.06 | E11: 1325.58 | F11: 145.8 | G11: =+G10 -> -53.34 | H11: 196.46 | I11: 500 | J11: 330 | K11: -39.63
A12: 2017-09-10 | B12: 79.4 | C12: 74.7 | D12: 157.94 | E12: 1452.16 | F12: 125.69 | G12: =+G11 -> -53.34 | H12: 178.86 | I12: 460 | J12: 302 | K12: -55
A13: 2017-10-10 | B13: 61.99 | C13: 53.73 | D13: 97.09 | E13: 1546.29 | F13: 130.57 | G13: -53.34 | H13: 159 | I13: 526 | J13: 365 | K13: -55
A14: 2017-11-10 | B14: 76.22 | C14: 48.21 | D14: 149.91 | E14: 1397.48 | F14: 131.09 | G14: =+G13 -> -53.34 | H14: 99.45 | I14: 645 | J14: 365 | K14: -45
A15: 2017-12-10 | B15: 84.4 | C15: 43.46 | D15: 161.15 | E15: 1294.38 | F15: 150.23 | G15: -53.34 | H15: 82.64 | I15: 610 | J15: 349.38 | K15: -40
A16: 2018-01-10 | B16: 52.82 | C16: 30.18 | D16: 148.97 | E16: 1546.21 | F16: 179.13 | G16: -53.34 | H16: 199.7 | I16: 620 | J16: 346 | K16: -40
A17: 2018-02-10 | B17: 61.63 | C17: 6.08 | D17: 109.1 | E17: 1224.44 | F17: 179.68 | G17: -53.34 | H17: 136 | I17: 640 | J17: 390 | K17: -40
A18: 2018-03-10 | B18: 47.32 | C18: -6.82 | D18: 77.71 | E18: 1038.01 | F18: 183.54 | G18: -53.34 | H18: 175 | I18: 691.6 | J18: 450 | K18: -30
A19: 2018-04-10 | B19: 80.45 | C19: -9.08 | D19: 86.87 | E19: 1520.62 | F19: 191.31 | G19: =+G18 -> -53.34 | H19: 202 | I19: 780 | J19: 440 | K19: -40
A20: Average | B20: =+'Commodity Revenue'!AA20 -> 80.24523357 | C20: =+'Commodity Revenue'!AB20 -> 55.1314093 | D20: =+'Commodity Revenue'!AC20 -> 151.4322643 | E20: =+'Commodity Revenue'!AD20 -> 1350.572493 | F20: =+'Commodity Revenue'!AE20 -> 146.9042878 | G20: =+'Commodity Revenue'!AF20 -> -53.34 | H20: =+'Commodity Revenue'!AG20 -> 170.26086 | I20: =+'Commodity Revenue'!AH20 -> 594.0016418 | J20: =+'Commodity Revenue'!AI20 -> 351.8307137 | K20: =+'Commodity Revenue'!AJ20 -> -42.68382233

Sheet CRC Composition
A1: Cascade Recycling Center
A2: Tonnage Delivered and Processed
A5: Stream Composition-CRC | AC5: %
B6: 2017-05-05 | D6: 2017-06-05 | F6: 2017-07-05 | H6: 2017-08-05 | J6: 2017-09-05 | L6: 2017-10-05 | N6: 2017-11-05 | P6: 2017-12-05 | R6: 2018-01-05 | T6: 2018-02-05 | V6: 2018-03-11 | X6: 2018-04-11 | Z6: Total | AC6: Excluding
B7: Tons | D7: Tons | F7: Tons | H7: Tons | J7: Tons | L7: Tons | N7: Tons | P7: Tons | R7: Tons | T7: Tons | V7: Tons | X7: Tons | Z7: Tons | AC7: Residue
A8: Newspaper | B8: 2035.16 | C8: =B8/B$19 -> 0.2395328829 | D8: 2134.24 | E8: =D8/D$19 -> 0.2544775986 | F8: 1912.2 | G8: =F8/F$19 -> 0.2384310087 | H8: 1574.83 | I8: =H8/H$19 -> 0.1914363408 | J8: 1530.12 | K8: =J8/J$19 -> 0.1964545937 | L8: 1796.750513 | M8: =L8/L$19 -> 0.2277124997 | N8: 2135.235601 | O8: =N8/N$19 -> 0.2588870945 | P8: 1973.360511 | Q8: =P8/P$19 -> 0.2417628635 | R8: 2200.29 | S8: =R8/R$19 -> 0.2447028809 | T8: 1558.47 | U8: =T8/T$19 -> 0.2286816473 | V8: 1805.15 | W8: =V8/V$19 -> 0.2319498876 | X8: 1976.45 | Y8: =X8/X$19 -> 0.2692227011 | Z8: =+P8+N8+L8+J8+H8+F8+D8+B8+R8+T8+V8+X8 -> 22632.25663 | AA8: =+Z8/$Z$19 -> 0.2353868594 | AC8: =+Z8/($Z$19-$Z$18) -> 0.2679051377
A9: Mix Paper | B9: 1664.79 | C9: =B9/B$19 -> 0.1959413255 | D9: 2100.3 | E9: 0.250430739 | F9: 1850.37 | G9: =F9/F$19 -> 0.2307214651 | H9: 1776.64 | I9: =H9/H$19 -> 0.2159683652 | J9: 1407.94 | K9: =J9/J$19 -> 0.1807677049 | L9: 1208.099175 | M9: =L9/L$19 -> 0.1531093388 | N9: 1176.049317 | O9: =N9/N$19 -> 0.1425903495 | P9: 1132.94105 | Q9: =P9/P$19 -> 0.138800321 | R9: 1253.01 | S9: =R9/R$19 -> 0.1393521567 | T9: 842.32 | U9: 0.123597583 | V9: 920.76 | W9: 0.1183115965 | X9: 713.18 | Y9: 0.09714601734 | Z9: =+P9+N9+L9+J9+H9+F9+D9+B9+R9+T9+V9+X9 -> 16046.39954 | AA9: =+Z9/$Z$19 -> 0.1668906312 | AC9: =+Z9/($Z$19-$Z$18) -> 0.1899462767
A10: OCC | B10: 1776.48 | C10: 0.2090869395 | D10: 1620.89 | E10: 0.1932679524 | F10: 1456 | G10: =F10/F$19 -> 0.1815477192 | H10: 1846.74 | I10: =H10/H$19 -> 0.2244897215 | J10: 1621.13 | K10: =J10/J$19 -> 0.2081395155 | L10: 1756.049019 | M10: =L10/L$19 -> 0.2225541659 | N10: 1664.285866 | O10: =N10/N$19 -> 0.2017866937 | P10: 2177.959455 | Q10: =P10/P$19 -> 0.2668289506 | R10: 2194.62 | S10: =R10/R$19 -> 0.2440722979 | T10: 1919.42 | U10: 0.2816455418 | V10: 2318.06 | W10: 0.2978554449 | X10: 1940.07 | Y10: 0.264267189 | Z10: 22291.70434 | AA10: 0.2318449442 | AC10: 0.2638739132
A11: Aluminum | B11: 41.05 | C11: 0.004831475089 | D11: 37.91 | E11: 0.004520225355 | F11: 52.66 | G11: =F11/F$19 -> 0.006566142098 | H11: 50.72 | I11: =H11/H$19 -> 0.006165523395 | J11: 45.96 | K11: =J11/J$19 -> 0.005900879097 | L11: 39.70676128 | M11: =L11/L$19 -> 0.005032265638 | N11: 35.6338394 | O11: =N11/N$19 -> 0.004320432436 | P11: 30.84281946 | Q11: =P11/P$19 -> 0.003778654893 | R11: 26.04 | S11: =R11/R$19 -> 0.002896010534 | T11: 22.93 | U11: 0.003364626956 | V11: 24.44 | W11: 0.003140379056 | X11: 15.81 | Y11: 0.002153563664 | Z11: 423.7034201 | AA11: 0.004406728813 | AC11: 0.005015510604
A12: Tin Cans | B12: 87.32 | C12: 0.0102773302 | D12: 63.02 | E12: 0.007514233762 | F12: 81.24 | G12: =F12/F$19 -> 0.01012976422 | H12: 78.4 | I12: =H12/H$19 -> 0.009530304301 | J12: 96.38 | K12: =J12/J$19 -> 0.01237438484 | L12: 98.00731825 | M12: =L12/L$19 -> 0.01242102967 | N12: 124.0189015 | O12: =N12/N$19 -> 0.01503669808 | P12: 102.57 | Q12: =P12/P$19 -> 0.01256618685 | R12: 123.76 | S12: =R12/R$19 -> 0.01376383501 | T12: 85.25 | U12: 0.01250913424 | V12: 81.27 | W12: 0.01044265981 | X12: 46.72 | Y12: 0.00636397814 | Z12: 1067.95622 | AA12: 0.01110728217 | AC12: 0.01264173356
A13: Glass | B13: 1737.87 | C13: 0.2045426459 | D13: 1521.13 | E13: 0.1813729991 | F13: 1717.01 | G13: =F13/F$19 -> 0.2140928911 | H13: 1880.96 | I13: =H13/H$19 -> 0.2286495048 | J13: 1811.35 | K13: =J13/J$19 -> 0.2325621704 | L13: 1722.419124 | M13: =L13/L$19 -> 0.2182920563 | N13: 1735.560802 | O13: =N13/N$19 -> 0.2104284385 | P13: 1534.493649 | Q13: =P13/P$19 -> 0.1879958459 | R13: 2101.95 | S13: =R13/R$19 -> 0.2337661038 | T13: 1177.68 | U13: 0.1728065362 | V13: 1311.47 | W13: 0.1685152586 | X13: 1475.22 | Y13: 0.2009475135 | Z13: 19727.11357 | AA13: 0.2051719095 | AC13: 0.2335160459
A14: PET | B14: 135.1 | C14: 0.01590090827 | D14: 128.25 | E14: 0.01529197842 | F14: 151.91 | G14: =F14/F$19 -> 0.01894156183 | H14: 139.72 | I14: =H14/H$19 -> 0.01698436374 | J14: 137.72 | K14: =J14/J$19 -> 0.01768209463 | L14: 102.5355995 | M14: =L14/L$19 -> 0.01299492473 | N14: 85.41660295 | O14: =N14/N$19 -> 0.01035635419 | P14: 80.0069335 | Q14: =P14/P$19 -> 0.009801911628 | R14: 93.74 | S14: =R14/R$19 -> 0.01042519307 | T14: 99.27 | U14: 0.0145663549 | V14: 82.81 | W14: 0.01064053967 | X14: 52.61 | Y14: 0.007166286172 | Z14: 1289.089136 | AA14: 0.01340717579 | AC14: 0.01525935342
A15: HDPE Natl | B15: 21.98 | C15: 0.002586987149 | D15: 11.9 | E15: 0.00141890482 | F15: 8.28 | G15: =F15/F$19 -> 0.001032427964 | H15: 23.21 | I15: =H15/H$19 -> 0.002821407689 | J15: 22.2 | K15: =J15/J$19 -> 0.002850294081 | L15: 22.31028439 | M15: =L15/L$19 -> 0.002827510326 | N15: 35.46870447 | O15: =N15/N$19 -> 0.004300410615 | P15: 22.30683464 | Q15: =P15/P$19 -> 0.002732883418 | R15: 35.69 | S15: =R15/R$19 -> 0.003969224883 | T15: 16.65 | U15: 0.002443132962 | V15: 25.19 | W15: 0.003236749117 | X15: 30.71 | Y15: 0.004183171419 | Z15: 275.8958235 | AA15: 0.002869455419 | AC15: 0.003265865609
A16: HDPE Col | B16: 33.25 | C16: 0.003913435973 | D16: 29.08 | E16: 0.003467374132 | F16: 26.43 | G16: =F16/F$19 -> 0.003295539986 | H16: 21.73 | I16: =H16/H$19 -> 0.002641498883 | J16: 25.81 | K16: =J16/J$19 -> 0.003313787848 | L16: 23.94228358 | M16: =L16/L$19 -> 0.003034342945 | N16: 18.29535995 | O16: =N16/N$19 -> 0.002218224808 | P16: 12.54545078 | Q16: =P16/P$19 -> 0.00153698429 | R16: 12.56 | S16: =R16/R$19 -> 0.001396846863 | T16: 14.3 | U16: 0.002098306388 | V16: 16.52 | W16: 0.002122711211 | X16: 15.39 | Y16: 0.002096353244 | Z16: 249.8530943 | AA16: 0.002598597928 | AC16: 0.002957589636
A17: #3 - 7 | B17: 41.23 | C17: 0.004852660607 | D17: 31.67 | E17: 0.003776194593 | F17: 45.55 | G17: =F17/F$19 -> 0.005679600695 | H17: 47.27 | I17: =H17/H$19 -> 0.005746141382 | J17: 51.72 | K17: =J17/J$19 -> 0.006640414859 | L17: 58.42479386 | M17: =L17/L$19 -> 0.007404509285 | N17: 34.44065396 | O17: =N17/N$19 -> 0.004175764413 | P17: 33.14391518 | Q17: =P17/P$19 -> 0.00406056967 | R17: 36.61 | S17: =R17/R$19 -> 0.004071541692 | T17: 27.17 | U17: 0.003986782137 | V17: 34.01 | W17: 0.004370061034 | X17: 33.41 | Y17: 0.00455095269 | Z17: 474.649363 | AA17: 0.004936592259 | AC17: 0.005618573748
A18: Residue | B18: 922.14 | C18: 0.108533409 | D18: 708.36 | E18: 0.08446179986 | F18: 718.28 | G18: =F18/F$19 -> 0.08956187897 | H18: 786.17 | I18: =H18/H$19 -> 0.09556682822 | J18: 1038.34 | K18: =J18/J$19 -> 0.1333141602 | L18: 1062.189405 | M18: =L18/L$19 -> 0.1346173567 | N18: 1203.342681 | O18: =N18/N$19 -> 0.1458995393 | P18: 1062.21 | Q18: =P18/P$19 -> 0.1301348283 | R18: =907.64+5.77 -> 913.41 | S18: =R18/R$19 -> 0.1015839087 | T18: =1048.33+3.23 -> 1051.56 | U18: 0.1543003542 | V18: =0.21+1162.61 -> 1162.82 | W18: 0.1494147125 | X18: 1041.75 | Y18: 0.1419022737 | Z18: 11670.57209 | AA18: 0.1213798233
B19: =SUM(B8:B18) -> 8496.37 | C19: 1 | D19: 8386.75 | E19: 1 | F19: 8019.93 | G19: 1 | H19: 8226.39 | I19: 1 | J19: 7788.67 | K19: 1 | L19: 7890.434277 | M19: 1 | N19: 8247.748329 | O19: 1 | P19: 8162.380618 | Q19: 1 | R19: =SUM(R8:R18) -> 8991.68 | S19: =SUM(S8:S18) -> 1 | T19: =SUM(T8:T18) -> 6815.02 | U19: =SUM(U8:U18) -> 1 | V19: =SUM(V8:V18) -> 7782.5 | W19: =SUM(W8:W18) -> 1 | X19: =SUM(X8:X18) -> 7341.32 | Y19: =SUM(Y8:Y18) -> 1 | Z19: =SUM(Z8:Z18) -> 96149.19322 | AA19: 1 | AC19: =SUM(AC8:AC18) -> 1

Sheet Customers
A1: Waste Management of Skagit County
A2: Recycling Customers by Jurisdiction
C5: 2017-05-01 | D5: 2017-06-01 | E5: 2017-07-01 | F5: 2017-08-01 | G5: 2017-09-01 | H5: 2017-10-01 | I5: 2017-11-01 | J5: 2017-12-01 | K5: 2018-01-01 | L5: 2018-02-01 | M5: 2018-03-01 | N5: 2018-04-01 | O5: Total
A6: Contract Cities:
B7: Anacortes | C7: 6538 | D7: 6547 | E7: 6552 | F7: 6545 | G7: 6554 | H7: 6555 | I7: 6565 | J7: 6570 | K7: 6579 | L7: 6581 | M7: 6592 | N7: 6596 | O7: =SUM(C7:N7) -> 78774
B8: Burlington | C8: 2190 | D8: 2163 | E8: 2174 | F8: 2139 | G8: 2142 | H8: 2140 | I8: 2133 | J8: 2123 | K8: 2129 | L8: 2126 | M8: 2130 | N8: 2137 | O8: 25726
B9: Darrington | C9: 477 | D9: 480 | E9: 482 | F9: 483 | G9: 479 | H9: 480 | I9: 481 | J9: 484 | K9: 483 | L9: 486 | M9: 488 | N9: 487 | O9: 5790
B10: Sedro-Woolley -annex | C10: 3 | D10: 3 | E10: 3 | F10: 3 | G10: 3 | H10: 3 | I10: 3 | J10: 3 | K10: 3 | L10: 3 | M10: 4 | N10: 4 | O10: 38
B11: Mount Vernon | C11: 9454 | D11: 9456 | E11: 9426 | F11: 9420 | G11: 9408 | H11: 9405 | I11: 9352 | J11: 9334 | K11: 9398 | L11: 9403 | M11: 9410 | N11: 9429 | O11: 112895
B12: Stanwood | C12: 1726 | D12: 1734 | E12: 1728 | F12: 1723 | G12: 1729 | H12: 1748 | I12: 1744 | J12: 1745 | K12: 1747 | L12: 1757 | M12: 1767 | N12: 1766 | O12: 20914
B13: Other | C13: 470 | D13: 474 | E13: 479 | F13: 489 | G13: 493 | H13: 490 | I13: 488 | J13: 491 | K13: 489 | L13: 494 | M13: 503 | N13: 512 | O13: 5872
B14: Total | C14: =SUM(C7:C13) -> 20858 | D14: 20857 | E14: 20844 | F14: 20802 | G14: 20808 | H14: 20821 | I14: 20766 | J14: 20750 | K14: 20828 | L14: 20850 | M14: 20894 | N14: 20931 | O14: 250009
C15: =+C14/C24 -> 0.6765268723 | D15: 0.6734581853 | E15: 0.6710018027 | F15: 0.6690251825 | G15: 0.6683154007 | H15: 0.6671045465 | I15: 0.6655982564 | J15: 0.6650854194 | K15: 0.665027619 | L15: 0.6646053806 | M15: 0.6633647649 | N15: 0.6622686284 | O15: 0.6675896874
A17: WUTC:
B18: Skagit County | C18: 4854 | D18: 4929 | E18: 4987 | F18: 5025 | G18: 5045 | H18: 5077 | I18: 5090 | J18: 5104 | K18: 5122 | L18: 5133 | M18: 5179 | N18: 5207 | O18: =SUM(C18:N18) -> 60752
B19: Island County | C19: 2124 | D19: 2189 | E19: 2223 | F19: 2251 | G19: 2246 | H19: 2256 | I19: 2274 | J19: 2271 | K19: 2270 | L19: 2281 | M19: 2307 | N19: 2343 | O19: =SUM(C19:N19) -> 27035
B20: Snohomish County | C20: 2995 | D20: 2995 | E20: 3010 | F20: 3015 | G20: 3036 | H20: 3057 | I20: 3069 | J20: 3074 | K20: 3099 | L20: 3108 | M20: =2939+17+161 -> 3117 | N20: =2939+24+161 -> 3124 | O20: =SUM(C20:N20) -> 36699
B21: Total | C21: =SUM(C18:C20) -> 9973 | D21: 10113 | E21: 10220 | F21: 10291 | G21: 10327 | H21: 10390 | I21: 10433 | J21: 10449 | K21: 10491 | L21: 10522 | M21: =SUM(M18:M20) -> 10603 | N21: =SUM(N18:N20) -> 10674 | O21: =SUM(O18:O20) -> 124486
C22: =+C21/C$24 -> 0.3234731277 | D22: =+D21/D$24 -> 0.3265418147 | E22: 0.3289981973 | F22: 0.3309748175 | G22: 0.3316845993 | H22: 0.3328954535 | I22: 0.3344017436 | J22: 0.3349145806 | K22: 0.334972381 | L22: 0.3353946194 | M22: 0.3366352351 | N22: 0.3377313716 | O22: 0.3324103126
B24: Grand Total | C24: =+C21+C14 -> 30831 | D24: 30970 | E24: 31064 | F24: 31093 | G24: 31135 | H24: 31211 | I24: 31199 | J24: 31199 | K24: 31319 | L24: 31372 | M24: 31497 | N24: 31605 | O24: 374495
C26: =+C20/C21 -> 0.3003108393 | D26: =+D20/D24 -> 0.09670649015 | E26: =+E20/E21 -> 0.2945205479 | F26: 0.2929744437 | G26: 0.293986637 | H26: 0.2942252166 | I26: 0.2941627528 | J26: 0.2941908317 | K26: 0.2953960538 | L26: 0.2953811063 | M26: 0.2939734038 | N26: 0.2926737868 | O26: 0.294804235

Sheet Tonnages Collected
A1: WM of Skagit County
A2: Residential Recycling Tons Collected
D5: Less:
C6: Res'l | D6: CRC
C7: Collected | D7: Residual | E7: Net
A8: Month | C8: Tons | D8: Rate | E8: Tons
A10: May | C10: =+'Tonnages by Day'!E30 -> 804.71 | D10: =+'CRC Composition'!C18 -> 0.108533409 | E10: =+C10-C10*D10 -> 717.3720805
A11: Jun | C11: =+'Tonnages by Day'!E53 -> 790.9 | D11: =+'CRC Composition'!E18 -> 0.08446179986 | E11: =+C11-C11*D11 -> 724.0991625
A12: Jul | C12: =+'Tonnages by Day'!E74 -> 744.1 | D12: =+'CRC Composition'!G18 -> 0.08956187897 | E12: 677.4570059
A13: Aug | C13: =+'Tonnages by Day'!E97 -> 815.12 | D13: =+'CRC Composition'!I18 -> 0.09556682822 | E13: 737.221567
A14: Sep | C14: =+'Tonnages by Day'!E121 -> 789.1 | D14: =+'CRC Composition'!K18 -> 0.1333141602 | E14: 683.9017962
A15: Oct | C15: =+'Tonnages by Day'!E147 -> 799.24 | D15: =+'CRC Composition'!M18 -> 0.1346173567 | E15: 691.6484238
A16: Nov | C16: =+'Tonnages by Day'!E169 -> 880.9 | D16: =+'CRC Composition'!O18 -> 0.1458995393 | E16: 752.3770958
A17: Dec | C17: =+'Tonnages by Day'!E192 -> 869.35 | D17: =+'CRC Composition'!Q18 -> 0.1301348283 | E17: 756.217287
A18: Jan | C18: =+'Tonnages by Day'!E216 -> 908.05 | D18: =+'CRC Composition'!S18 -> 0.1015839087 | E18: 815.8067317
A19: Feb | C19: =+'Tonnages by Day'!E236 -> 665.84 | D19: =+'CRC Composition'!U18 -> 0.1543003542 | E19: 563.1006521
A20: Mar | C20: =+'Tonnages by Day'!E258 -> 747.13 | D20: =+'CRC Composition'!W18 -> 0.1494147125 | E20: 635.4977859
A21: Apr | C21: =+'Tonnages by Day'!E279 -> 757.79 | D21: =+'CRC Composition'!Y18 -> 0.1419022737 | E21: 650.257876
C22: =SUM(C10:C21) -> 9572.23 | D22: =(+C22-E22)/C22 -> 0.1219436365 | E22: =SUM(E10:E21) -> 8404.957464

Sheet Tonnages by Day
A1: WM of Skagit
A2: Report for Residential Sideload Recycling
A3: Report Dates:5/1/2017-2/28/2018
A6: Date | B6: Tons | C6: Loads | D6: Tons/Load
A7: 2017-05-01 | B7: 32.67 | C7: 9 | D7: =+B7/C7 -> 3.63
A8: 2017-05-02 | B8: 36.97 | C8: 10 | D8: =+B8/C8 -> 3.697
A9: 2017-05-03 | B9: 43.32 | C9: 11 | D9: 3.938181818
A10: 2017-05-04 | B10: 29.77 | C10: 6 | D10: 4.961666667
A11: 2017-05-05 | B11: 54.76 | C11: 12 | D11: 4.563333333
A12: 2017-05-08 | B12: 30.06 | C12: 10 | D12: 3.006
A13: 2017-05-09 | B13: 27.81 | C13: 8 | D13: 3.47625
A14: 2017-05-10 | B14: 32.08 | C14: 11 | D14: 2.916363636
A15: 2017-05-11 | B15: 28.42 | C15: 7 | D15: 4.06
A16: 2017-05-12 | B16: 24 | C16: 9 | D16: 2.666666667
A17: 2017-05-15 | B17: 35.06 | C17: 9 | D17: 3.895555556
A18: 2017-05-16 | B18: 35.58 | C18: 10 | D18: 3.558
A19: 2017-05-17 | B19: 48.42 | C19: 13 | D19: 3.724615385
A20: 2017-05-18 | B20: 41.13 | C20: 11 | D20: 3.739090909
A21: 2017-05-19 | B21: 48.84 | C21: 13 | D21: 3.756923077
A22: 2017-05-22 | B22: 23.47 | C22: 6 | D22: 3.911666667
A23: 2017-05-23 | B23: 25.83 | C23: 9 | D23: 2.87
A24: 2017-05-24 | B24: 34.35 | C24: 11 | D24: 3.122727273
A25: 2017-05-25 | B25: 5.02 | C25: 1 | D25: 5.02
A26: 2017-05-25 | B26: 30.05 | C26: 10 | D26: 3.005
A27: 2017-05-26 | B27: 18.52 | C27: 7 | D27: 2.645714286
A28: 2017-05-29 | B28: 9.5 | C28: 3 | D28: 3.166666667
A29: 2017-05-30 | B29: 61.81 | C29: 15 | D29: 4.120666667
A30: 2017-05-31 | B30: 47.27 | C30: 12 | D30: 3.939166667 | E30: =SUM(B7:B30) -> 804.71
A31: 2017-06-01 | B31: 38.3 | C31: 11 | D31: 3.481818182
A32: 2017-06-02 | B32: 54.13 | C32: 14 | D32: 3.866428571
A33: 2017-06-05 | B33: 26.19 | C33: 9 | D33: 2.91
A34: 2017-06-06 | B34: 26.15 | C34: 9 | D34: 2.905555556
A35: 2017-06-07 | B35: 38.32 | C35: 13 | D35: 2.947692308
A36: 2017-06-08 | B36: 31.13 | C36: 9 | D36: 3.458888889
A37: 2017-06-09 | B37: 30.72 | C37: 9 | D37: 3.413333333
A38: 2017-06-12 | B38: 30.81 | C38: 8 | D38: 3.85125
A39: 2017-06-13 | B39: 34.21 | C39: 9 | D39: 3.801111111
A40: 2017-06-14 | B40: 46.37 | C40: 12 | D40: 3.864166667
A41: 2017-06-15 | B41: 41.2 | C41: 12 | D41: 3.433333333
A42: 2017-06-16 | B42: 44.77 | C42: 13 | D42: 3.443846154
A43: 2017-06-19 | B43: 23.27 | C43: 7 | D43: 3.324285714
A44: 2017-06-20 | B44: 17.69 | C44: 7 | D44: 2.527142857
A45: 2017-06-21 | B45: 34.77 | C45: 10 | D45: 3.477
A46: 2017-06-22 | B46: 1.08 | C46: 1 | D46: 1.08
A47: 2017-06-22 | B47: 24.11 | C47: 8 | D47: 3.01375
A48: 2017-06-23 | B48: 33.98 | C48: 9 | D48: 3.775555556
A49: 2017-06-26 | B49: 32.64 | C49: 8 | D49: 4.08
A50: 2017-06-27 | B50: 37.45 | C50: 10 | D50: 3.745
A51: 2017-06-28 | B51: 46.96 | C51: 12 | D51: 3.913333333
A52: 2017-06-29 | B52: 44.15 | C52: 11 | D52: 4.013636364
A53: 2017-06-30 | B53: 52.5 | C53: 15 | D53: 3.5 | E53: =SUM(B31:B53) -> 790.9
A54: 2017-07-03 | B54: 23.86 | C54: 6 | D54: 3.976666667
A55: 2017-07-04 | B55: 17.33 | C55: 7 | D55: 2.475714286
A56: 2017-07-05 | B56: 34.66 | C56: 9 | D56: 3.851111111
A57: 2017-07-06 | B57: 37.99 | C57: 10 | D57: 3.799
A58: 2017-07-07 | B58: 36.92 | C58: 9 | D58: 4.102222222
A59: 2017-07-10 | B59: 34.14 | C59: 9 | D59: 3.793333333
A60: 2017-07-11 | B60: 35 | C60: 9 | D60: 3.888888889
A61: 2017-07-12 | B61: 47.7 | C61: 13 | D61: 3.669230769
A62: 2017-07-13 | B62: 43.85 | C62: 10 | D62: 4.385
A63: 2017-07-14 | B63: 50.88 | C63: 14 | D63: 3.634285714
A64: 2017-07-17 | B64: 26.32 | C64: 8 | D64: 3.29
A65: 2017-07-18 | B65: 16.37 | C65: 5 | D65: 3.274
A66: 2017-07-19 | B66: 38.4 | C66: 12 | D66: 3.2
A67: 2017-07-20 | B67: 32.47 | C67: 9 | D67: 3.607777778
A68: 2017-07-21 | B68: 34.05 | C68: 9 | D68: 3.783333333
A69: 2017-07-24 | B69: 24.02 | C69: 8 | D69: 3.0025
A70: 2017-07-25 | B70: 34.11 | C70: 11 | D70: 3.100909091
A71: 2017-07-26 | B71: 48.53 | C71: 13 | D71: 3.733076923
A72: 2017-07-27 | B72: 43.49 | C72: 14 | D72: =+B72/C72 -> 3.106428571
A73: 2017-07-28 | B73: 51.62 | C73: 16 | D73: 3.22625
A74: 2017-07-31 | B74: 32.39 | C74: 13 | D74: 2.491538462 | E74: =SUM(B54:B74) -> 744.1
A75: 2017-08-01 | B75: 30.08 | C75: 11 | D75: 2.734545455
A76: 2017-08-02 | B76: 40.93 | C76: 13 | D76: 3.148461538
A77: 2017-08-03 | B77: 25.83 | C77: 7 | D77: 3.69
A78: 2017-08-04 | B78: 41.9 | C78: 11 | D78: 3.809090909
A79: 2017-08-07 | B79: 31.64 | C79: 10 | D79: 3.164
A80: 2017-08-08 | B80: 34.74 | C80: 13 | D80: 2.672307692
A81: 2017-08-09 | B81: 40.91 | C81: 12 | D81: 3.409166667
A82: 2017-08-10 | B82: 44.18 | C82: 14 | D82: 3.155714286
A83: 2017-08-11 | B83: 51.58 | C83: 15 | D83: 3.438666667
A84: 2017-08-14 | B84: 22.89 | C84: 9 | D84: 2.543333333
A85: 2017-08-15 | B85: 29.43 | C85: 11 | D85: 2.675454545
A86: 2017-08-16 | B86: 38.38 | C86: 13 | D86: 2.952307692
A87: 2017-08-17 | B87: 31.16 | C87: 9 | D87: 3.462222222
A88: 2017-08-18 | B88: 25.42 | C88: 8 | D88: 3.1775
A89: 2017-08-21 | B89: 33.09 | C89: 9 | D89: 3.676666667
A90: 2017-08-22 | B90: 29.84 | C90: 10 | D90: 2.984
A91: 2017-08-23 | B91: 46.32 | C91: 11 | D91: 4.210909091
A92: 2017-08-24 | B92: 40.36 | C92: 12 | D92: 3.363333333
A93: 2017-08-25 | B93: 48.25 | C93: 13 | D93: 3.711538462
A94: 2017-08-28 | B94: 27.49 | C94: 8 | D94: 3.43625
A95: 2017-08-29 | B95: 33.13 | C95: 10 | D95: 3.313
A96: 2017-08-30 | B96: 30.89 | C96: 8 | D96: 3.86125
A97: 2017-08-31 | B97: 36.68 | C97: 11 | D97: 3.334545455 | E97: =SUM(B75:B97) -> 815.12
A98: 2017-09-01 | B98: 29.84 | C98: 9 | D98: 3.315555556
A99: 2017-09-04 | B99: 7.11 | C99: 4 | D99: 1.7775
A100: 2017-09-05 | B100: 59.28 | C100: 19 | D100: 3.12
A101: 2017-09-06 | B101: 49.49 | C101: 13 | D101: 3.806923077
A102: 2017-09-07 | B102: 41.47 | C102: 12 | D102: 3.455833333
A103: 2017-09-08 | B103: 52.33 | C103: 16 | D103: 3.270625
A104: 2017-09-11 | B104: 27.65 | C104: 8 | D104: 3.45625
A105: 2017-09-12 | B105: 30.6 | C105: 9 | D105: 3.4
A106: 2017-09-13 | B106: 5.94 | C106: 1 | D106: 5.94
A107: 2017-09-13 | B107: 2.22 | C107: 1 | D107: 2.22
A108: 2017-09-13 | B108: 25.59 | C108: 8 | D108: 3.19875
A109: 2017-09-14 | B109: 4.91 | C109: 1 | D109: 4.91
A110: 2017-09-14 | B110: 33.44 | C110: 9 | D110: 3.715555556
A111: 2017-09-15 | B111: 34.99 | C111: 11 | D111: 3.180909091
A112: 2017-09-18 | B112: 34.93 | C112: 9 | D112: 3.881111111
A113: 2017-09-19 | B113: 39.32 | C113: 12 | D113: 3.276666667
A114: 2017-09-20 | B114: 46.61 | C114: 12 | D114: 3.884166667
A115: 2017-09-21 | B115: 43.17 | C115: 11 | D115: 3.924545455
A116: 2017-09-22 | B116: 50.95 | C116: 13 | D116: 3.919230769
A117: 2017-09-25 | B117: 32.77 | C117: 9 | D117: 3.641111111
A118: 2017-09-26 | B118: 28.5 | C118: 9 | D118: 3.166666667
A119: 2017-09-27 | B119: 38.08 | C119: 11 | D119: 3.461818182
A120: 2017-09-28 | B120: 27.3 | C120: 9 | D120: 3.033333333
A121: 2017-09-29 | B121: 42.61 | C121: 10 | D121: 4.261 | E121: =SUM(B98:B121) -> 789.1
A122: 2017-10-02 | B122: 29.44 | C122: 7 | D122: 4.205714286
A123: 2017-10-03 | B123: 33.36 | C123: 9 | D123: 3.706666667
A124: 2017-10-03 | B124: 1 | C124: 1 | D124: 1
A125: 2017-10-04 | B125: 40.66 | C125: 11 | D125: 3.696363636
A126: 2017-10-05 | B126: 37.96 | C126: 10 | D126: 3.796
A127: 2017-10-06 | B127: 50.73 | C127: 14 | D127: 3.623571429
A128: 2017-10-09 | B128: 32.29 | C128: 9 | D128: 3.587777778
A129: 2017-10-10 | B129: 28.27 | C129: 9 | D129: 3.141111111
A130: 2017-10-11 | B130: 38.91 | C130: 9 | D130: 4.323333333
A131: 2017-10-12 | B131: 30.65 | C131: 8 | D131: 3.83125
A132: 2017-10-13 | B132: 32.95 | C132: 10 | D132: 3.295
A133: 2017-10-16 | B133: 33.72 | C133: 8 | D133: 4.215
A134: 2017-10-17 | B134: 33.46 | C134: 8 | D134: 4.1825
A135: 2017-10-18 | B135: 43.78 | C135: 14 | D135: 3.127142857
A136: 2017-10-18 | B136: 4.1 | C136: 1 | D136: =+B136/C136 -> 4.1
A137: 2017-10-19 | B137: 38.21 | C137: 9 | D137: 4.245555556
A138: 2017-10-19 | B138: 4.52 | C138: 1 | D138: 4.52
A139: 2017-10-20 | B139: 49.77 | C139: 13 | D139: 3.828461538
A140: 2017-10-23 | B140: 31.51 | C140: 8 | D140: 3.93875
A141: 2017-10-24 | B141: 30 | C141: 10 | D141: 3
A142: 2017-10-25 | B142: 41.07 | C142: 11 | D142: 3.733636364
A143: 2017-10-26 | B143: 28.13 | C143: 7 | D143: 4.018571429
A144: 2017-10-26 | B144: 5.27 | C144: 1 | D144: 5.27
A145: 2017-10-27 | B145: 34.11 | C145: 9 | D145: 3.79
A146: 2017-10-30 | B146: 34.45 | C146: 9 | D146: 3.827777778
A147: 2017-10-31 | B147: 30.92 | C147: 10 | D147: 3.092 | E147: =SUM(B122:B147) -> 799.24
A148: 2017-11-01 | B148: 44.77 | C148: 11 | D148: 4.07
A149: 2017-11-02 | B149: 45.34 | C149: 13 | D149: 3.487692308
A150: 2017-11-03 | B150: 50.9 | C150: 14 | D150: 3.635714286
A151: 2017-11-06 | B151: 25.74 | C151: 8 | D151: 3.2175
A152: 2017-11-07 | B152: 29.08 | C152: 9 | D152: 3.231111111
A153: 2017-11-08 | B153: 40.91 | C153: 11 | D153: 3.719090909
A154: 2017-11-09 | B154: 27.39 | C154: 7 | D154: 3.912857143
A155: 2017-11-10 | B155: 24.84 | C155: 6 | D155: 4.14
A156: 2017-11-13 | B156: 45.14 | C156: 12 | D156: 3.761666667
A157: 2017-11-14 | B157: 36.51 | C157: 9 | D157: 4.056666667
A158: 2017-11-15 | B158: 45.75 | C158: 10 | D158: 4.575
A159: 2017-11-16 | B159: 44.09 | C159: 12 | D159: 3.674166667
A160: 2017-11-17 | B160: 50.05 | C160: 12 | D160: 4.170833333
A161: 2017-11-20 | B161: 32.22 | C161: 10 | D161: 3.222
A162: 2017-11-21 | B162: 30.61 | C162: 9 | D162: 3.401111111
A163: 2017-11-22 | B163: 48.14 | C163: 12 | D163: 4.011666667
A164: 2017-11-24 | B164: 27.14 | C164: 7 | D164: 3.877142857
A165: 2017-11-25 | B165: 27.61 | C165: 6 | D165: 4.601666667
A166: 2017-11-27 | B166: 58.08 | C166: 13 | D166: 4.467692308
A167: 2017-11-28 | B167: 43.78 | C167: 10 | D167: 4.378
A168: 2017-11-29 | B168: 49.32 | C168: 11 | D168: 4.483636364
A169: 2017-11-30 | B169: 53.49 | C169: 12 | D169: 4.4575 | E169: =SUM(B148:B169) -> 880.9
A170: 2017-12-01 | B170: 54.67 | C170: 12 | D170: 4.555833333
A171: 2017-12-04 | B171: 35.94 | C171: 8 | D171: 4.4925
A172: 2017-12-05 | B172: 33.3 | C172: 10 | D172: 3.33
A173: 2017-12-06 | B173: 48.37 | C173: 11 | D173: 4.397272727
A174: 2017-12-07 | B174: 36.77 | C174: 9 | D174: 4.085555556
A175: 2017-12-08 | B175: 40.65 | C175: 10 | D175: 4.065
A176: 2017-12-11 | B176: 33.37 | C176: 8 | D176: 4.17125
A177: 2017-12-12 | B177: 38.4 | C177: 10 | D177: 3.84
A178: 2017-12-13 | B178: 49.19 | C178: 14 | D178: 3.513571429
A179: 2017-12-14 | B179: 42.9 | C179: 12 | D179: 3.575
A180: 2017-12-15 | B180: 50.61 | C180: 13 | D180: 3.893076923
A181: 2017-12-18 | B181: 34.35 | C181: 9 | D181: 3.816666667
A182: 2017-12-19 | B182: 31.25 | C182: 9 | D182: 3.472222222
A183: 2017-12-20 | B183: 44.85 | C183: 13 | D183: 3.45
A184: 2017-12-21 | B184: 34.64 | C184: 8 | D184: 4.33
A185: 2017-12-22 | B185: 26.51 | C185: 7 | D185: 3.787142857
A186: 2017-12-26 | B186: 2.48 | C186: 1 | D186: 2.48
A187: 2017-12-26 | B187: 52.07 | C187: 16 | D187: 3.254375
A188: 2017-12-27 | B188: 62.08 | C188: 16 | D188: 3.88
A189: 2017-12-28 | B189: 2.94 | C189: 1 | D189: 2.94
A190: 2017-12-28 | B190: 51.85 | C190: 14 | D190: 3.703571429
A191: 2017-12-29 | B191: 45.65 | C191: 11 | D191: 4.15
A192: 2017-12-30 | B192: 16.51 | C192: 5 | D192: 3.302 | E192: =SUM(B170:B192) -> 869.35
A193: 2018-01-02 | B193: 37.06 | C193: 10 | D193: 3.706
A194: 2018-01-03 | B194: 40.88 | C194: 11 | D194: 3.716363636
A195: 2018-01-04 | B195: 48.77 | C195: 14 | D195: 3.483571429
A196: 2018-01-05 | B196: 3.57 | C196: 1 | D196: 3.57
A197: 2018-01-05 | B197: 37.16 | C197: 10 | D197: 3.716
A198: 2018-01-06 | B198: 23.33 | C198: 7 | D198: 3.332857143
A199: 2018-01-08 | B199: 23.7 | C199: 7 | D199: 3.385714286
A200: 2018-01-09 | B200: 35.5 | C200: 9 | D200: =+B200/C200 -> 3.944444444
A201: 2018-01-10 | B201: 57.57 | C201: 14 | D201: 4.112142857
A202: 2018-01-11 | B202: 48.62 | C202: 12 | D202: 4.051666667
... 78 more rows
